Cogmind - Beta 10.2 *** ADVENTURER MODE // 2021.05.12 @ 12:29:31 Player: Trantor Result: Self-destructed Performance ------------- Evolutions (3) 1500 Regions Visited (9) 1800 Robots Destroyed (182) 910 Value Destroyed (5734) 5734 Prototype IDs (14) 280 Alien Tech Used (0) 0 Bonus (-16) -16 TOTAL SCORE: 10208 Bonus ------- Follower Combat Kills 14 Friendly Fire -30 Cogmind --------- Core Integrity 25/700 Matter 100/300 Energy 28/100 System Corruption 5% Temperature Cool (343) Movement Core (50) Location -7/Waste Parts ------- > --- POWER (1) -------- (None) > --- PROPULSION (4) --- (None) > --- UTILITY (5) ------ (None) > --- WEAPON (3) ------- (None) > --- INVENTORY (4) ---- Gravmag System Heavy Particle Gun Plasma Cannon Gauss Cannon Peak State ------------ > --- POWER ------------ Heavy Ion Engine > --- PROPULSION ------- Medium Treads Medium Treads Medium Treads Medium Treads > --- UTILITY ---------- High-capacity Storage Unit High-capacity Storage Unit High-capacity Storage Unit Long-range Sensor Array Advanced Signal Interpreter > --- WEAPON ----------- Gauss Rifle Flak Gun Rocket Array > --- INVENTORY -------- Improved Deuterium Engine Light Treads Gravmag System Gravmag System Improved Flight Unit Large Matter Pod Large Matter Pod Improved Targeting Computer Hardened Medium Armor Plating Hardened Medium Armor Plating Hardened Medium Armor Plating Improved Light Armor Plating Improved Medium Armor Plating Hacking Suite System Shield Heavy Particle Gun Plasma Cannon Plasma Cannon Plasma Cannon Plasma Cannon Gauss Rifle Gauss Rifle Advanced Assault Cannon Gauss Cannon Gauss Cannon Gauss Cannon Improved Grenade Launcher Missile Launcher [Rating: 51] Favorites ----------- Power Heavy Ion Engine Engine Heavy Ion Engine Power Core Enhanced Nuclear Core Propulsion Armored Wheel Treads Medium Treads Leg Aluminum Leg Wheel Armored Wheel Hover Unit Airjet Utility High-capacity Storage Unit Device Advanced Sensor Array Storage High-capacity Storage Unit Processor Advanced Signal Interpreter Protection Hardened Light Armor Plating Weapon Heavy Assault Rifle Energy Gun EM Pulse Gun Energy Cannon Heavy Particle Cannon Ballistic Gun Heavy Assault Rifle Ballistic Cannon Flak Cannon Launcher Mini Grenade Launcher Special Weapon Mining Laser Special Melee Weapon Datajack Build | -11 -10 -10 -9 -9 -9 -8 -8 -7 -7 ------- Run | Scr Mat Min Mat Min Exi Min Mat Fac Was Slots Evolved 6 | . . . 2 . . . 2 2 . Power . | . . . . . . . . . . Propulsion 2 | . . . 1 . . . . 1 . Utility 3 | . . . 1 . . . 1 1 . Weapon 1 | . . . . . . . 1 . . Parts Attached 167 | . 11 25 41 7 . 5 41 31 6 Power 21 | . 1 6 5 . . 1 6 2 . Engine 19 | . 1 5 5 . . 1 6 1 . Core 2 | . . 1 . . . . . 1 . Reactor . | . . . . . . . . . . Propulsion 42 | . 4 9 8 . . 2 8 11 . Treads 6 | . . . . . . . . 6 . Leg . | . . . . . . . . . . Wheel 34 | . 4 9 8 . . 2 6 5 . Hover 2 | . . . . . . . 2 . . Flight . | . . . . . . . . . . Utility 23 | . 3 . 3 2 . . 10 5 . Device 8 | . . . 1 1 . . 2 4 . Storage 5 | . 2 . . . . . 3 . . Processor 4 | . . . . . . . 3 1 . Hackware . | . . . . . . . . . . Protection 6 | . 1 . 2 1 . . 2 . . Artifact . | . . . . . . . . . . Weapon 81 | . 3 10 25 5 . 2 17 13 6 Energy Gun 8 | . 2 3 3 . . . . . . Energy Cannon 7 | . . . 3 1 . . . . 3 Ballistic Gun 38 | . . 3 11 2 . 2 10 10 . Ballistic Cannon 8 | . . . . . . . 4 1 3 Launcher 16 | . . 3 6 2 . . 3 2 . Special Weapon 2 | . 1 1 . . . . . . . Impact Weapon . | . . . . . . . . . . Slashing Weapon . | . . . . . . . . . . Piercing Weapon . | . . . . . . . . . . Special Melee Weapon 2 | . . . 2 . . . . . . Unidentified Prototypes 6 | . . . 3 . . . 1 2 . Parts Lost 30 | . . 6 4 1 . 1 6 6 6 Power 4 | . . 3 . . . . . 1 . Propulsion 11 | . . 2 . . . 1 2 4 2 Utility 5 | . . . 1 1 . . 1 . 2 Weapon 10 | . . 1 3 . . . 3 1 2 Highest Loss Streak 6 | . . 4 1 1 . 1 2 3 6 Average Slot Usage (%) 98 | . 99 97 98 99 100 100 98 99 95 Engine 8 | . 14 12 11 11 11 11 8 2 6 Core 1 | . . . . . . . . 4 . Treads 4 | . . . . . . . . 13 27 Leg 1 | . 17 . . . . . . . . Wheel 23 | . 10 26 32 33 33 33 25 15 . Device 2 | . . . 6 . . . . 5 7 Storage 23 | . 23 28 22 22 22 22 25 23 22 Processor 4 | . . . . . . . 9 8 7 Protection 2 | . 4 . 4 10 11 11 . . . Energy Gun 2 | . 15 13 1 . . . . . . Ballistic Gun 18 | . 10 11 14 17 22 22 22 21 . Ballistic Cannon 1 | . . . . . . . 4 . 13 Naked Turns 3 | . . . . . . . . . 3 Heaviest Build 127 | 10 41 46 57 56 51 54 117 121 127 Greatest Support 112 | 20 20 26 36 36 36 36 36 112 112 Greatest Overweight (x) 12 | . 2 11 1 1 1 1 12 11 2 Average Overweight (x) 1 | . . 1 1 1 1 1 2 1 1 Largest Inventory Capacity 28 | . 16 16 16 16 16 16 28 28 28 Average Capacity 21 | . 12 16 16 16 16 16 26 28 26 Most Carried 28 | . 16 16 16 16 16 16 28 28 28 Average Carried 21 | . 11 15 15 16 16 15 25 27 26 Final Capacity 28 | 6 16 16 16 16 16 16 28 28 4 Final Carried 28 | 6 15 16 16 16 16 16 28 28 4 Class Distribution -------------------- 43% | Mutant 26% | Hauler-Skirmisher 22% | Hauler-Gunner Dominant Class ---------------- Mutant | -10/Materials Mutant | -10/Mines Mutant | -9/Materials Mutant | -9/Mines Mutant | -9/Exiles Mutant | -8/Mines Hauler-Gunner | -8/Materials Hauler-Skirmisher | -7/Factory Hauler-Skirmisher | -7/Waste Resources | -11 -10 -10 -9 -9 -9 -8 -8 -7 -7 ----------- Run | Scr Mat Min Mat Min Exi Min Mat Fac Was Matter Collected 5970 | 200 127 424 1002 206 . 390 1944 1485 192 Remotely . | . . . . . . . . . . Salvage Created 7176 | . 308 330 1416 182 . 454 2254 2040 192 Parts 401 | . 19 16 105 14 . 19 110 118 . Haulers Intercepted 16 | . 2 . 6 . . . 6 2 . Recyclers Shooed 6 | . . 1 2 . . . 1 2 . Parts Field Recycled . | . . . . . . . . . . Retrieved Matter . | . . . . . . . . . . Parts Self-Destructed . | . . . . . . . . . . Prevented . | . . . . . . . . . . Kills | -11 -10 -10 -9 -9 -9 -8 -8 -7 -7 ------- Run | Scr Mat Min Mat Min Exi Min Mat Fac Was Combat Hostiles Destroyed 147 | . 8 14 29 8 . 10 43 34 1 Guns 117 | . 8 11 12 8 . 10 35 33 . Cannons 13 | . . . 7 . . . 5 . 1 AOE 17 | . . 3 10 . . . 3 1 . Classes Destroyed 16 | . 4 4 3 . . 2 1 1 1 Worker 5 | . . 1 . . . 1 . 3 . Builder 5 | . 1 . 1 . . . 1 2 . Hauler 16 | . 2 . 6 . . . 6 2 . Recycler 5 | . . 1 2 . . . . 2 . Operator 3 | . . . 1 . . . 1 1 . Watcher 9 | . . . 3 . . . 3 3 . Swarmer 34 | . 6 3 11 3 . 1 7 3 . Grunt 61 | . 2 3 9 3 . 6 23 15 . Brawler 2 | . . . . . . 2 . . . Duelist 2 | . . . . . . . 1 1 . Sentry 23 | . . . 9 . . . 10 4 . Demolisher 2 | . . 2 . . . . . . . Hunter 7 | . . . . . . 1 2 4 . Programmer 7 | . . . . . . . . 7 . Compactor 1 | . . . . . . . . . 1 Assembled 8 | . . 6 . 2 . . . . . Best Kill Streak 8 | . 3 3 8 3 . 4 5 5 1 Combat Bots Only 7 | . 3 3 7 3 . 3 5 3 1 Max Kills in Single Turn 5 | . 1 1 5 1 . 1 2 1 1 Gunslinging 1 | . . . . . . . 1 . . Exploded 4 | . . 1 4 . . . 2 1 . Melee . | . . . . . . . . . . Uniques/NPCs Destroyed . | . . . . . . . . . . Combat | -11 -10 -10 -9 -9 -9 -8 -8 -7 -7 -------- Run | Scr Mat Min Mat Min Exi Min Mat Fac Was Damage Taken 6201 | . 234 795 855 283 . 556 1406 1494 578 Core 1294 | . 17 142 122 43 . 110 185 161 514 Absorbed by Shields . | . . . . . . . . . . Core Remaining (%) 58 | 100 . 36 . . . 31 66 . . Volleys Fired 499 | . 28 43 101 34 . 45 128 103 17 Largest 3 | . 2 2 2 2 . 2 3 3 3 Hottest 240 | . 100 165 98 98 . 46 90 104 240 Shots Fired 1101 | . 54 66 155 49 . 90 347 295 45 Gun 945 | . 52 58 112 39 . 90 309 285 . Cannon 116 | . . . 26 10 . . 30 5 45 Launcher 36 | . . 6 17 . . . 8 5 . Special 4 | . 2 2 . . . . . . . Kinetic 916 | . 20 29 94 39 . 90 339 290 15 Thermal 107 | . 22 19 26 10 . . . . 30 Explosive 36 | . . 6 17 . . . 8 5 . Electromagnetic 42 | . 12 12 18 . . . . . . Robot Hit Streak 43 | . 7 20 24 19 . 31 43 33 15 Robot Miss Streak 5 | . 3 4 3 3 . 2 5 4 1 Penetration Max 1 | . . . . . . . 1 1 . Secondary Targets 8 | . 2 . . 1 . 1 3 1 . Max Gunslinging Chain 1 | . 1 . . 1 . 1 1 1 . Shots Hit Robots 818 | . 35 46 114 30 . 80 247 228 38 Core Hits 409 | . 14 25 55 12 . 27 116 155 5 Critical Hits 12 | . 2 . 1 1 . 3 3 2 . Critical Kills . | . . . . . . . . . . Critical Parts Destroyed 11 | . 2 . . 1 . 3 3 2 . Melee Attacks 6 | . . . 6 . . . . . . Impact . | . . . . . . . . . . Slashing . | . . . . . . . . . . Piercing . | . . . . . . . . . . Sneak Attacks 5 | . . . 5 . . . . . . Combat Hostiles . | . . . . . . . . . . Follow-up Attacks . | . . . . . . . . . . Damage Inflicted 15034 | . 467 855 2325 485 . 1119 4221 4458 1104 Guns 11459 | . 339 569 1247 485 . 1119 3556 4144 . Cannons 2065 | . . . 473 . . . 468 32 1092 Explosions 1443 | . 90 269 605 . . . 197 282 . Melee . | . . . . . . . . . . Ramming 43 | . 14 17 . . . . . . 12 Kinetic 11502 | . 69 291 1018 485 . 1119 4024 4176 320 Thermal 1701 | . 284 172 473 . . . . . 772 Explosive 1353 | . . 269 605 . . . 197 282 . Electromagnetic 435 | . 100 106 229 . . . . . . Impact . | . . . . . . . . . . Slashing . | . . . . . . . . . . Piercing . | . . . . . . . . . . Highest Corruption 9 | . 1 9 . . . . . 5 5 Average Corruption 3 | . 1 6 . . . . . 3 5 Corruption Purged . | . . . . . . . . . . Effects 117 | . 2 32 . . . . . 79 4 Message Errors 31 | . 1 9 . . . . . 19 2 Matter Fused 23 | . . 7 . . . . . 16 . Heat Flow Errors 17 | . . 8 . . . . . 8 1 Energy Discharges 12 | . . 2 . . . . . 10 . Data Loss (minor) 11 | . 1 . . . . . . 10 . Data Loss (major) 3 | . . 2 . . . . . 1 . Misfires 5 | . . 1 . . . . . 4 . Targeting Errors 10 | . . 1 . . . . . 8 1 Weapon Failures 5 | . . 2 . . . . . 3 . Overload Shots . | . . . . . . . . . . Overflow Damage 83 | . 20 . 31 . . . 2 30 . Projectiles 16 | . . . 14 . . . 2 . . Explosions 67 | . 20 . 17 . . . . 30 . Melee . | . . . . . . . . . . Knockbacks 7 | . . . . . . . 7 . . Impact . | . . . . . . . . . . Kinetic 7 | . . . . . . . 7 . . Secondary . | . . . . . . . . . . Self-Inflicted Damage 200 | . 7 67 46 . . . . 80 . Shots 5 | . . 2 2 . . . . 1 . Rammed 7 | . 1 4 . . . . . . 2 Targets Rammed 7 | . 1 4 . . . . . . 2 Kicked . | . . . . . . . . . . Crushed . | . . . . . . . . . . Highest Temperature 850 | . 133 259 424 193 . 100 353 260 850 Average Temperature 86 | . 52 82 67 76 . 39 79 44 325 Received Heat Transfer 2090 | . 120 83 261 30 . 297 765 534 . Effects 23 | . . 1 1 . . . 2 . 19 Shutdowns 2 | . . . 1 . . . . . 1 Energy Bleed 3 | . . . . . . . 1 . 2 Interference 4 | . . 1 . . . . . . 3 Matter Decay 4 | . . . . . . . 1 . 3 Damage (minor) 6 | . . . . . . . . . 6 Damage (major) 1 | . . . . . . . . . 1 Damage (core) 3 | . . . . . . . . . 3 Siege Activations . | . . . . . . . . . . Robots Corrupted . | . . . . . . . . . . Combat Hostiles . | . . . . . . . . . . Parts Fried 2 | . . . 2 . . . . . . Impact Corruptions . | . . . . . . . . . . Robots Melted . | . . . . . . . . . . Combat Hostiles . | . . . . . . . . . . Parts Melted 1 | . 1 . . . . . . . . Heat Transferred 3241 | . 631 407 703 . . . . . 1500 Parts Sabotaged . | . . . . . . . . . . Parts Stolen . | . . . . . . . . . . Parts Stripped . | . . . . . . . . . . Power Chain Reactions 1 | . 1 . . . . . . . . Missiles Intercepted . | . . . . . . . . . . Alert | -11 -10 -10 -9 -9 -9 -8 -8 -7 -7 ------- Run | Scr Mat Min Mat Min Exi Min Mat Fac Was Peak Influence 350 | . 181 164 229 102 . 249 350 339 9 Initial 13 | . . 9 13 7 . . . . 9 Average 70 | . 29 67 66 38 . 101 120 55 7 Maximum Alert Level 1 | . . . 1 . . 1 1 1 . Low Security (%) 93 | . 100 100 99 100 . 87 84 94 100 Level 1 6 | . . . . . . 12 15 5 . Level 2 . | . . . . . . . . . . Level 3 . | . . . . . . . . . . Level 4 . | . . . . . . . . . . Level 5 . | . . . . . . . . . . High Security . | . . . . . . . . . . Max Security . | . . . . . . . . . . Squads Dispatched 30 | . . . 5 . . . 8 17 . Investigation 12 | . . . 2 . . . 6 4 . Extermination 5 | . . . . . . . . 5 . Reinforcement 8 | . . . 3 . . . 2 3 . Assault . | . . . . . . . . . . Garrison 5 | . . . . . . . . 5 . Intercept . | . . . . . . . . . . Construction Impeded 2 | . . . . . . . 1 1 . Haulers Reinforced 1 | . . . . . . . . 1 . Stealth | -11 -10 -10 -9 -9 -9 -8 -8 -7 -7 --------- Run | Scr Mat Min Mat Min Exi Min Mat Fac Was Distress Signals 11 | . 1 . 4 . . . 4 2 . Communications Jammed . | . . . . . . . . . . Distress Signals . | . . . . . . . . . . Times Spotted 231 | . 19 15 51 11 . 14 72 47 2 Peak Tracking Total 8 | . 5 3 8 4 . 3 5 4 1 Tactical Retreats 18 | . 3 1 . 1 . 2 8 3 . Traps | -11 -10 -10 -9 -9 -9 -8 -8 -7 -7 ------- Run | Scr Mat Min Mat Min Exi Min Mat Fac Was Traps Triggered 9 | . 1 1 . . . . 5 2 . Indirectly . | . . . . . . . . . . Trap Hack Attempts . | . . . . . . . . . . Triggered . | . . . . . . . . . . Disarmed . | . . . . . . . . . . Reprogrammed . | . . . . . . . . . . Reused . | . . . . . . . . . . Traps Extracted . | . . . . . . . . . . Installed . | . . . . . . . . . . Triggered . | . . . . . . . . . . Machines | -11 -10 -10 -9 -9 -9 -8 -8 -7 -7 ---------- Run | Scr Mat Min Mat Min Exi Min Mat Fac Was Machines Disabled 12 | . 1 1 1 . . . 5 4 . Max in Single Turn 2 | . 1 1 1 . . . 1 2 . Garrison Access 3 | . . . . . . . 1 2 . Machines Sabotaged . | . . . . . . . . . . Garrisons Compromised . | . . . . . . . . . . Overloaded Fab Kills . | . . . . . . . . . . Fab Network Shutdowns . | . . . . . . . . . . Hacking | -11 -10 -10 -9 -9 -9 -8 -8 -7 -7 --------- Run | Scr Mat Min Mat Min Exi Min Mat Fac Was Machines Accessed 53 | . 7 1 14 . 4 . 14 13 . Terminals 35 | . 7 . 9 . . . 10 9 . Fabricators . | . . . . . . . . . . Repair Stations 3 | . . . 2 . . . 1 . . Recycling Units 1 | . . . 1 . . . . . . Scanalyzers 6 | . . . 2 . . . 2 2 . Garrison Access 3 | . . . . . . . 1 2 . Total Hacks 173 | . 19 1 39 . 27 . 48 39 . Successful 125 | . 12 1 30 . 27 . 34 21 . Failed 47 | . 6 . 9 . . . 14 18 . Catastrophic 7 | . . . . . . . 3 4 . Database Lockouts 1 | . 1 . . . . . . . . Manual 92 | . 19 . 27 . . . 26 20 . Terminals 101 | . 19 . 25 . . . 30 27 . Fabricators . | . . . . . . . . . . Repair Stations 6 | . . . 4 . . . 2 . . Recycling Units 2 | . . . 2 . . . . . . Scanalyzers 30 | . . . 8 . . . 14 8 . Garrison Access 6 | . . . . . . . 2 4 . Terminal Hacks 60 | . 8 1 6 . 27 . 11 7 . Record 27 | . . . . . 27 . . . . Part Schematic 4 | . 2 . . . . . . 2 . Robot Schematic 1 | . . . . . . . . 1 . Robot Analysis 4 | . 2 . 1 . . . 1 . . Prototype ID Bank 4 | . 1 . . . . . 3 . . Open Door 1 | . . 1 . . . . . . . Terminal Index 4 | . 1 . 1 . . . 1 1 . Unreport Threat 14 | . 2 . 4 . . . 5 3 . Locate Traps 1 | . . . . . . . 1 . . Fabricator Hacks . | . . . . . . . . . . Repair Station Hacks 6 | . . . 4 . . . 2 . . Scan Component 3 | . . . 2 . . . 1 . . Repair 3 | . . . 2 . . . 1 . . Recycling Unit Hacks 2 | . . . 2 . . . . . . Report Inventory 2 | . . . 2 . . . . . . Scanalyzer 28 | . . . 8 . . . 14 6 . Insert Component 13 | . . . 3 . . . 7 3 . Analyze 15 | . . . 5 . . . 7 3 . Garrison Access Hacks 3 | . . . . . . . 1 2 . Seal Access 3 | . . . . . . . 1 2 . Unauthorized Hacks 25 | . 3 . 10 . . . 6 6 . Terminals 25 | . 3 . 10 . . . 6 6 . Track 2 | . . . 2 . . . . . . Assimilate 5 | . . . 3 . . . 1 1 . Botnet 15 | . 3 . 4 . . . 3 5 . Operators 3 | . . . 1 . . . 2 . . Fabricators . | . . . . . . . . . . Repair Stations . | . . . . . . . . . . Recycling Units . | . . . . . . . . . . Scanalyzers . | . . . . . . . . . . Garrison Access . | . . . . . . . . . . Data Cores Recovered 2 | . . . . . . . 1 1 . Used . | . . . . . . . . . . Hacking Detections 44 | . 7 . 12 . . . 12 13 . Full Trace Events 11 | . . . 3 . . . 4 4 . Feedback Events . | . . . . . . . . . . Feedback Blocked . | . . . . . . . . . . Robot Schematics Acquired 1 | . . . . . . . . 1 . Robots Built . | . . . . . . . . . . Matter . | . . . . . . . . . . Time . | . . . . . . . . . . Total Robot Build Rating . | . . . . . . . . . . Part Schematics Acquired 16 | . 2 . 3 . . . 7 4 . Parts Built . | . . . . . . . . . . Matter . | . . . . . . . . . . Time . | . . . . . . . . . . Total Part Build Rating . | . . . . . . . . . . Parts Repaired 3 | . . . 2 . . . 1 . . Time 80 | . . . 64 . . . 16 . . Parts Recycled . | . . . . . . . . . . Recycled Matter . | . . . . . . . . . . Retrieved Matter . | . . . . . . . . . . Retrieved Components . | . . . . . . . . . . Parts Scanalyzed 13 | . . . 3 . . . 7 3 . Part Schematics Acquired 12 | . . . 3 . . . 7 2 . Parts Damaged 2 | . . . 1 . . . 1 . . Bothacking | -11 -10 -10 -9 -9 -9 -8 -8 -7 -7 ------------ Run | Scr Mat Min Mat Min Exi Min Mat Fac Was Used RIF Installer . | . . . . . . . . . . Robots Hacked 2 | . . . 2 . . . . . . Non-combat 2 | . . . 2 . . . . . . Combat . | . . . . . . . . . . Robot Hacks Applied 4 | . . . 4 . . . . . . parse_system 2 | . . . 2 . . . . . . no_distress 2 | . . . 2 . . . . . . Relay Couplers Released . | . . . . . . . . . . Robots Rewired . | . . . . . . . . . . Allies Hacked . | . . . . . . . . . . Hacks Repelled . | . . . . . . . . . . Allies | -11 -10 -10 -9 -9 -9 -8 -8 -7 -7 -------- Run | Scr Mat Min Mat Min Exi Min Mat Fac Was Total Allies 5 | . . . 1 3 . . . . 1 Largest Group 3 | . . . 1 3 3 3 . . 1 Highest-Rated Group 40 | . . . 10 40 40 40 . . 31 Highest-Rated Ally 31 | . . . 10 16 16 16 . . 31 Total Orders . | . . . . . . . . . . Ally Attacks 38 | . . . . . . 10 . . 28 Total Damage 715 | . . . . . . 146 . . 569 Kills 2 | . . . . . . 2 . . . Allies Corrupted . | . . . . . . . . . . Allies Melted . | . . . . . . . . . . Intel | -11 -10 -10 -9 -9 -9 -8 -8 -7 -7 ------- Run | Scr Mat Min Mat Min Exi Min Mat Fac Was Robot Analysis Total 4 | . 2 . 1 . . . 1 . . Derelict Logs Recovered 2 | . . 1 . 1 . . . . . Drone Launches . | . . . . . . . . . . Drone Recoveries . | . . . . . . . . . . Exploration | -11 -10 -10 -9 -9 -9 -8 -8 -7 -7 ------------- Run | Scr Mat Min Mat Min Exi Min Mat Fac Was Turns Passed 14528 | . 1134 1162 2159 888 315 911 2893 4902 164 Spaces Moved 9693 | 1 843 951 1562 710 310 741 1860 2671 44 Core 6 | . . 6 . . . . . . . Treads 1367 | . . . . . . . . 1323 44 Legs 485 | 1 484 . . . . . . . . Wheels 7834 | . 359 945 1562 710 310 741 1859 1348 . Hover 1 | . . . . . . . 1 . . Flight . | . . . . . . . . . . Fastest Speed 90 | 120 90 90 90 100 100 100 100 102 180 Average Speed 118 | 120 117 100 99 100 100 100 118 147 181 Slowest Speed 790 | 120 150 600 100 100 100 100 790 260 200 Overloaded Moves . | . . . . . . . . . . Propulsion Burnouts . | . . . . . . . . . . Robots Hopped . | . . . . . . . . . . Cave-ins Triggered 1 | . . 1 . . . . . . . Exploration Rate (%) 71 | 2 96 99 99 100 61 100 99 47 16 Regions Visited 9 Branch Regions 4 Pre-discovered Areas 3 | . . . . 2 1 . . . . Known Exits Taken 1 | . . . . . . . 1 . . Unknown Exits Taken 7 | 1 1 1 1 1 1 1 . . . Scrap Searched 5 | . . 1 . 3 . 1 . . . Spaces Dug 22 | . 1 16 5 . . . . . . Terrain Destroyed 352 | . 3 49 136 1 . . 70 93 . Melee . | . . . . . . . . . . Projectile 11 | . 1 2 1 1 . . 4 2 . AOE 341 | . 2 47 135 . . . 66 91 . Terrain Rammed . | . . . . . . . . . . Walls Destroyed . | . . . . . . . . . . Machines Disabled . | . . . . . . . . . . Actions | -11 -10 -10 -9 -9 -9 -8 -8 -7 -7 --------- Run | Scr Mat Min Mat Min Exi Min Mat Fac Was Total 11881 | . 936 1094 2027 840 315 834 2313 3439 83 Wait 1250 | . 23 50 244 89 6 32 214 578 14 Move 9685 | . 842 950 1561 709 309 740 1859 2671 44 Hop . | . . . . . . . . . . Pick Up 113 | . 17 6 29 . . 4 38 19 . Fast Attach 53 | . 2 8 13 2 . 1 9 18 . Attach 23 | . . 3 6 . . 2 9 3 . Detach 9 | . 1 2 1 . . . 2 3 . Swap 91 | . 9 14 22 5 . 2 23 10 6 Drop 143 | . 13 14 44 1 . 6 31 34 . Fire 499 | . 28 43 101 34 . 45 128 103 17 Melee 6 | . . . 6 . . . . . . Ram 6 | . 1 4 . . . . . . 1 Kick . | . . . . . . . . . . Crush 1 | . . . . . . . . . 1 Escape Stasis . | . . . . . . . . . . Rewire 2 | . . . . . . 2 . . . Trap . | . . . . . . . . . . Miscellaneous . | . . . . . . . . . . Route ------- -11/Scrapyard -10/Materials (discovered 4 exits: *Mat x3 / *Min) -10/Mines (discovered 2 exits: *Mat x2) -9/Materials (discovered 6 exits: *Mat x3 / [*Min x2] / *Sto) -9/Mines (discovered 3 exits: *Mat x2 / *Exi) -9/Exiles (discovered 2 exits: [*Min x2]) -8/Mines (discovered 2 exits: *Mat x2) -8/Materials (discovered 3 exits: *Fac x3) -7/Factory -7/Waste History --------- Turn | Location | Event 1 | -11/Scrapyard | Discovered new exit (range 0) 1 | -11/Scrapyard | Entered Materials 181 | -10/Materials | Discovered new exit (range 14) 282 | -10/Materials | Discovered new exit (range 13) 314 | -10/Materials | Build established: Mutant 519 | -10/Materials | Discovered new exit (range 5) 729 | -10/Materials | Central database locked down 748 | -10/Materials | Discovered new exit (range 10) 1135 | -10/Materials | Entered Mines 1136 | -10/Mines | Assembled infested the area 1141 | -10/Mines | Assisted by a Guerilla fighting off Assembled 1482 | -10/Mines | Received a Rocket Launcher from a helpful Derelict 1523 | -10/Mines | Crushed by falling debris 1537 | -10/Mines | Core integrity fell below 50% 1554 | -10/Mines | Lost 4 parts (1p2n1w) 1647 | -10/Mines | Discovered new exit (range 7) 1832 | -10/Mines | Met a Derelict who couldn't figure out how to use a Trap Extractor 2088 | -10/Mines | Discovered new exit (range 9) 2297 | -10/Mines | Entered Materials 2297 | -9/Materials | Evolved 2 slots: Propulsion x1, Utility x1 2298 | -9/Materials | Identified exit to Storage 2581 | -9/Materials | Discovered new exit (range 16) 2717 | -9/Materials | Destroyed 7 combat bots 2867 | -9/Materials | Repaired Hvy. Assault Rifle 3129 | -9/Materials | Discovered new exit (range 14) 3475 | -9/Materials | Discovered new exit (range 6) 3530 | -9/Materials | Discovered new exit (range 16) 3967 | -9/Materials | Repaired Arm. Wheel 4371 | -9/Materials | Discovered new exit (range 5) 4456 | -9/Materials | Entered Mines 4456 | -9/Mines | Accompanied by 1 ally 4488 | -9/Mines | Deemed a non-threat by the Exiles lab entrance 4488 | -9/Mines | Discovered new exit (range 5) 4593 | -9/Mines | Learned location of Storage (-9) 4732 | -9/Mines | Excavation squad dispatched 4732 | -9/Mines | A large section of the Mines collapsed 5049 | -9/Mines | Discovered new exit (range 11) 5067 | -9/Mines | Assisted by bots powering up and referring to "LRC-V3" 5154 | -9/Mines | Discovered new exit (range 14) 5344 | -9/Mines | Entered Exiles 5344 | -9/Exiles | Accompanied by 3 allies 5363 | -9/Exiles | Discovered new exit (range 15) 5400 | -9/Exiles | Met 8R-AWN 5412 | -9/Exiles | Met EX-HEX 5454 | -9/Exiles | Met EX-DEC 5463 | -9/Exiles | Learned location of Zion (-6) 5482 | -9/Exiles | Met EX-BIN 5643 | -9/Exiles | Discovered new exit (range 11) 5659 | -9/Exiles | Entered Mines 5659 | -8/Mines | Accompanied by 3 allies 5854 | -8/Mines | Core integrity fell below 50% 6007 | -8/Mines | Discovered new exit (range 15) 6493 | -8/Mines | Discovered new exit (range 5) 6570 | -8/Mines | Entered Materials 6570 | -8/Materials | Evolved 2 slots: Utility x1, Weapon x1 7025 | -8/Materials | Discovered new exit (range 4) 7030 | -8/Materials | Identified exit to Factory 7285 | -8/Materials | Build established: Hauler-Gunner 7661 | -8/Materials | Repaired Arm. Wheel 7913 | -8/Materials | Discovered exit to Factory (range 13) 8323 | -8/Materials | Discovered exit to Factory (range 11) 9463 | -8/Materials | Entered Factory 9463 | -7/Factory | Evolved 2 slots: Propulsion x1, Utility x1 9770 | -7/Factory | Build established: Hauler-Skirmisher 10449 | -7/Factory | Garrison activated, responded to threat 11027 | -7/Factory | Lost 3 parts (3n) 11828 | -7/Factory | Garrison activated, responded to threat 12455 | -7/Factory | Garrison activated, responded to threat 12716 | -7/Factory | Build established: Hauler-Gunner 12922 | -7/Factory | Discovered new exit (range 15) 12978 | -7/Factory | Identified exit to Factory 13672 | -7/Factory | Build established: Hauler-Skirmisher 13891 | -7/Factory | Found Prototype Launcher 13891 | -7/Factory | Identified Rocket Array 14365 | -7/Factory | Sucked down chute 14365 | -7/Factory | Entered Waste 14366 | -7/Waste | Met a frightened Derelict 14428 | -7/Waste | Spotted C-40 Crusher 14454 | -7/Waste | Destroyed C-40 Crusher 14489 | -7/Waste | Spotted C-40 Crusher 14508 | -7/Waste | Crushed by Compactor (1 part destroyed, 1 dropped) 14511 | -7/Waste | Crushed by Compactor (1 part destroyed, 2 dropped) 14514 | -7/Waste | Crushed by Compactor (1 part destroyed, 1 dropped) 14515 | -7/Waste | Core integrity fell below 50% 14519 | -7/Waste | Core integrity fell below 20% 14520 | -7/Waste | Crushed by Compactor (1 part destroyed, 1 dropped) 14523 | -7/Waste | Crushed by Compactor (1 part destroyed, 1 dropped) 14526 | -7/Waste | Crushed by Compactor (1 part destroyed, 1 dropped) 14529 | -7/Waste | Self-destructed Last Messages --------------- 14518_ Med. Treads crushed. 14518_ Plasma Cannon crushed. 14519_ Overheating: Core damaged (-140). 14520_ Overheating: Hcp. Storage Unit damaged (-58). 14520_ Slammed into C-40 Crusher. 14520_ Rocket Array crushed. 14520_ Lrg. Matter Pod crushed. 14520_ Hcp. Storage Unit crushed. 14520_ Med. Treads crushed. 14522_ Slammed into C-40 Crusher. 14523_ Gauss Cannon crushed. 14523_ Hacking Suite crushed. 14523_ Plasma Cannon crushed. 14523_ Hcp. Storage Unit crushed. 14526_ System Shield crushed. 14526_ Prototype Flight Unit crushed. 14526_ Hcp. Storage Unit crushed. 14526_ Gauss Cannon crushed. 14526_ Lrn. Sensor Array crushed. 14526_ Adv. Signal Interpreter crushed. Map ----- +----------------------------------------------------+ | ??????????????????????????????????????????????? | | ??????????????????????????????????????????????? | | ??????????????????????????????????????????????? | | ??????????????????????????????????????????????? | | ??????????????????????????????????????????????? | | ??????????????????????????????????????????????? | | ??????????????????????????????????????????????? | | ??????????????????????????????????????????????? | | ??????????????????????????????????????????????? | | ??????????????????????????????????????????????? | | ??????????????????????????????????????????????? | | ??????????????????????????????????????????????? | | ??????????????????????????????????????????????? | | ??????????????????????????????????????????????? | | ??????????????????????????????????????????????? | | ??????????????????????????????????????????????? | | ???????????????????????????######?????????????? | | ???????????????????????????# #?????????????? | | ?????????????############??# #?????????????? | | ?????????????# #??# #?????????????? | | ?????????????# #??# #?????????????? | | ?????????????# #### #?????????????? | | ?????????????# [ =!#?????????????? | | ?????????????# ]=[!! #?????????????? | | ?????????????# !]!CC #?????????????? | | ?????????????# !*@CC #?????????????? | | ?????????????# ![[#### #?????????????? | | ?????????????# ]= #??# #?????????????? | | ?????????????# #??# #?????????????? | | ?????????????############??# #?????????????? | | ???????????????????????????# #?????????????? | | ??????????????????????????? #?????????????? | | ??????????????????????????? #?????????????? | | ??????????????????????????? #?????????????? | | ??????????????????????????? #?????????????? | | ???????????????????????????# #?????????????? | | ???????????????????????????? #?????????????? | | ???????????????????????????? #?????????????? | | ????????????????????????????! ??????????????? | | ??????????????????????????????????????????????? | | ??????????????????????????????????????????????? | | ??????????????????????????????????????????????? | | ??????????????????????????????????????????????? | | ??????????????????????????????????????????????? | | ??????????????????????????????????????????????? | | ??????????????????????????????????????????????? | | ??????????????????????????????????????????????? | | ??????????????????????????????????????????????? | | ??????????????????????????????????????????????? | | ??????????????????????????????????????????????? | +----------------------------------------------------+ Best States ------------- Heat Dissipation 34 Energy Generation 17 Energy Capacity 300 Matter Stores 300 Matter Capacity 300 Sight Range 16 Robot Scan Range 20 Terrain Scan Density 10 Armor Coverage 225 Resistance: KI 20 Resistance: TH 20 Resistance: EX 20 Resistance: EM 20 Resistance: I 20 Resistance: S 20 Resistance: P 20 Evasion (%) 42 Targeting Accuracy 8 Recoil Reduction 4 Offensive Hacking 10 Item Schematics ----------------- Hcp. Storage Unit | -10/Materials | Hacked Flight Unit | -10/Materials | Hacked Arm. Wheel | -9/Materials | Scanalyzed Hrd. Light Armor Plating | -9/Materials | Scanalyzed Imp. Hover Unit | -9/Materials | Scanalyzed Hacking Suite | -8/Materials | Scanalyzed Adv. Sensor Array | -8/Materials | Scanalyzed Hvy. Assault Rifle | -8/Materials | Scanalyzed Aerolev Unit | -8/Materials | Scanalyzed Hrd. Medium Armor Plating | -8/Materials | Scanalyzed System Shield | -8/Materials | Scanalyzed Adv. Terrain Scan Processor | -8/Materials | Scanalyzed Spear | -7/Factory | Hacked Gravmag System | -7/Factory | Scanalyzed Imp. Focal Shield | -7/Factory | Hacked Imp. Deuterium Engine | -7/Factory | Scanalyzed Robot Schematics ------------------ S-27 Virus | -7/Factory | Hacked Fabricated ------------ Nothing Alien Tech Used ----------------- None Achievements -------------- None Challenges ------------ None Game ------ Seed ReclamationBackupRedirector Manual? 0 Play Time 02:24:45 Cumulative 99.2 hours Start 2021.05.11 @ 23:13:29 End 2021.05.12 @ 12:29:31 Sessions 19 Manual Loads 0 Difficulty Adventurer Special Mode None Game No. 59 Rogue 34 Adventurer 25 Explorer 0 Win Type - Total 0 Types 0/0/0/0/0/0/0/0/0 Lore% 38 Gallery% 38 Achievement% 33 Wizard Run 0 Options --------- ASCII 0 Keyboard 1 Movement Vi Keybinds 1 Fullscreen 2 Font 18/SmallcapsGlow Map View 76x50 Tactical HUD 1 Map Filters NONE Filters NONE Steam 1 RUN: 110fa6d5-2c02-42b0-959d-e47572630605